bitfinex/quotes_SOLUSD_20230103
["timestamp","ask_amount","ask_price","bid_price","bid_amount"]
[1672783632181,100.0,13.37,13.364,73.58955387]
[1672783632498,100.0,13.37,13.364,20.0]
[1672783632713,100.0,13.37,13.361,20.0]
[1672783633115,100.0,13.37,13.36,20.0]
[1672783633532,100.0,13.37,13.361,30.0]
[1672783633765,100.0,13.37,13.362,20.0]
[1672783635969,56.15,13.369,13.362,20.0]
[1672783636279,56.15,13.369,13.361,30.0]
[1672783636494,100.0,13.37,13.362,20.0]
[1672783637111,56.15,13.369,13.362,20.0]
[1672783638170,56.15,13.369,13.36,20.0]
[1672783638804,100.0,13.37,13.36,20.0]
[1672783639131,100.0,13.37,13.355,41.08137784]
[1672783639132,30.0,13.368,13.356,34.14567529]
[1672783639344,30.0,13.366,13.349,47.6734]
[1672783639559,170.8629,13.365,13.35,30.0]
[1672783639744,170.8629,13.365,13.349,47.6734]
[1672783640178,170.8629,13.365,13.35,30.0]
[1672783640392,170.8629,13.365,13.351,20.0]
[1672783644577,170.8629,13.365,13.35,20.0]
[1672783648469,170.8629,13.365,13.351,30.0]
[1672783648679,170.8629,13.365,13.352,20.0]
[1672783652168,170.8629,13.365,13.351,20.0]
[1672783652373,219.7067,13.365,13.351,20.0]
[1672783653310,30.0,13.364,13.351,20.0]
[1672783653512,30.0,13.362,13.35,20.0]
[1672783653749,56.18,13.361,13.35,20.0]
[1672783653938,30.0,13.36,13.35,20.0]
[1672783654149,56.19,13.359,13.35,20.0]
[1672783655955,56.18,13.361,13.35,20.0]
[1672783656142,80.0,13.35,13.349,47.6734]
[1672783656351,80.0,13.35,13.344,30.0]
[1672783657409,78.5,13.35,13.344,30.0]
[1672783658257,78.5,13.35,13.346,30.0]
[1672783658574,78.5,13.35,13.348,30.0]
[1672783658784,78.5,13.35,13.349,20.0]
[1672783662553,78.5,13.35,13.343,56.25]
[1672783662776,78.5,13.35,13.341,48.106]
[1672783662971,78.5,13.35,13.339,30.0]
[1672783664264,78.5,13.35,13.338,86.27]
[1672783664575,78.5,13.35,13.339,11.08137784]
[1672783665818,78.5,13.35,13.34,20.0]
[1672783666029,78.5,13.35,13.337,30.0]
[1672783666030,78.5,13.35,13.338,20.0]
[1672783672242,134.73,13.35,13.338,20.0]
[1672783672645,134.73,13.35,13.337,20.0]
[1672783673298,134.73,13.35,13.338,30.0]
[1672783673497,134.73,13.35,13.339,20.0]
[1672783674665,78.5,13.35,13.339,20.0]
[1672783677809,78.5,13.35,13.34,30.0]
[1672783678019,78.5,13.35,13.341,20.0]
[1672783679072,134.73,13.35,13.341,20.0]
[1672783679385,78.5,13.35,13.341,20.0]
[1672783682767,134.73,13.35,13.341,20.0]
[1672783683080,134.73,13.35,13.339,20.0]
[1672783686108,134.73,13.35,13.338,20.0]
[1672783689796,134.73,13.35,13.335,30.0]
[1672783690117,47.1926,13.349,13.333,56.29]
[1672783690314,47.1926,13.349,13.334,30.0]
[1672783690737,47.1926,13.349,13.333,56.29]
[1672783691156,56.23,13.348,13.335,30.0]
[1672783691383,103.4226,13.349,13.334,30.0]
[1672783691907,30.0,13.348,13.333,50.0]
[1672783692222,56.24,13.347,13.331,154.73433688]
[1672783692409,56.24,13.347,13.318,436.3010188]
[1672783692410,30.0,13.346,13.329,192.88771658]
[1672783692624,30.0,13.344,13.329,42.3981797]
[1672783692828,105.078,13.343,13.329,42.3981797]
[1672783693270,30.0,13.342,13.329,42.3981797]
[1672783693483,56.26,13.341,13.329,42.3981797]
[1672783693692,105.088,13.341,13.329,42.3981797]
[1672783694304,30.0,13.34,13.329,42.3981797]
[1672783694749,30.0,13.338,13.329,42.3981797]
[1672783696007,30.0,13.338,13.33,20.0]
[1672783698946,30.0,13.338,13.329,18.10389756]
[1672783699135,30.0,13.338,13.312,222.33445386]
[1672783699136,124.7963594,13.327,13.311,222.33445386]
[1672783699356,56.33,13.326,13.309,0.0081797]
[1672783699559,73.28007108,13.325,13.306,0.01701003]
[1672783699770,140.56900839,13.307,13.306,0.01701003]
[1672783700004,140.56900839,13.307,13.289,169.89431516]
[1672783700005,129.69007108,13.307,13.289,169.89431516]
[1672783700203,56.41,13.306,13.289,169.89431516]
[1672783700414,103.28007108,13.305,13.289,169.89431516]
[1672783700735,103.28007108,13.303,13.289,169.89431516]
[1672783700938,103.28007108,13.301,13.289,169.89431516]
[1672783701152,73.28007108,13.299,13.289,169.89431516]
[1672783701472,73.28007108,13.296,13.289,169.89431516]
[1672783701684,30.0,13.294,13.289,169.89431516]
[1672783701882,129.75007108,13.293,13.289,42.3981797]
[1672783702202,30.0,13.297,13.294,0.0024092]
[1672783702203,56.45,13.296,13.294,0.0024092]
[1672783702419,30.0,13.295,13.289,0.0081797]
[1672783702617,30.0,13.293,13.289,0.0081797]
[1672783702826,56.47,13.292,13.289,0.0081797]
[1672783703037,30.0,13.291,13.265,30.0]
[1672783703255,30.0,13.289,13.265,30.0]
[1672783703458,56.49,13.288,13.261,30.0]
[1672783703671,30.0,13.287,13.261,30.0]
[1672783703885,56.5,13.286,13.261,30.0]
[1672783704307,30.0,13.285,13.261,30.0]
[1672783704501,30.0,13.283,13.261,30.0]
[1672783704717,56.51,13.282,13.261,30.0]
[1672783705146,30.0,13.281,13.261,30.0]
[1672783705978,56.52,13.28,13.261,30.0]
[1672783706402,56.51,13.282,13.261,30.0]
[1672783706822,30.0,13.283,13.261,30.0]
[1672783707033,56.5,13.284,13.261,30.0]
[1672783707250,94.9807,13.292,13.272,30.0]
[1672783707451,94.9807,13.292,13.273,20.0]
[1672783707663,94.9807,13.292,13.274,30.0]
[1672783708196,94.9807,13.292,13.276,30.0]
[1672783708408,23.6028,13.292,13.276,30.0]
[1672783708619,23.6028,13.292,13.277,20.0]
[1672783708620,53.6028,13.292,13.277,20.0]
[1672783709135,53.6028,13.292,13.274,30.0]
[1672783709136,86.48,13.291,13.27,42.3981797]
[1672783709352,30.0,13.29,13.27,42.3981797]
[1672783709567,30.0,13.288,13.27,42.3981797]
[1672783709762,56.49,13.287,13.27,42.3981797]
[1672783709974,30.0,13.286,13.27,42.3981797]
[1672783710292,30.0,13.284,13.27,42.3981797]
[1672783710515,30.0,13.282,13.27,42.3981797]
[1672783710725,56.52,13.281,13.271,20.0]
[1672783710929,56.51,13.283,13.272,30.0]
[1672783711143,97.695,13.291,13.272,78.06730023]
[1672783711354,97.695,13.291,13.273,11.08137784]
[1672783711568,97.695,13.291,13.274,30.0]
[1672783712186,97.695,13.291,13.276,30.0]
[1672783712419,24.4058,13.291,13.278,30.0]
[1672783712611,24.4058,13.291,13.279,20.0]
[1672783712939,24.4058,13.291,13.28,30.0]
[1672783713150,24.4058,13.291,13.281,20.0]
[1672783713362,24.4058,13.291,13.282,30.0]
[1672783713554,24.4058,13.291,13.283,20.0]
[1672783714401,24.4058,13.291,13.281,20.0]
[1672783714623,24.4058,13.291,13.277,20.0]
[1672783714832,24.4058,13.291,13.274,30.0]
[1672783714833,24.4058,13.291,13.276,20.0]
[1672783715046,24.4058,13.291,13.274,30.0]
[1672783715047,24.4058,13.291,13.275,20.0]
[1672783715448,24.4058,13.291,13.276,30.0]
[1672783715657,24.4058,13.291,13.277,20.0]
[1672783715980,24.4058,13.291,13.278,30.0]
[1672783716189,24.4058,13.291,13.279,20.0]
[1672783716407,24.4058,13.291,13.28,30.0]
[1672783716616,24.4058,13.291,13.282,30.0]
[1672783716827,24.4058,13.291,13.283,20.0]
[1672783717359,24.4058,13.291,13.284,36.95844155]
[1672783717542,24.4058,13.291,13.283,57.99267589]
[1672783717543,24.4058,13.291,13.285,20.0]
[1672783717759,24.4058,13.291,13.283,20.0]
[1672783718409,24.4058,13.291,13.28,20.0]
[1672783718600,24.4058,13.291,13.279,20.0]
[1672783719976,24.4058,13.291,13.278,20.0]
[1672783720190,24.4058,13.291,13.277,20.0]
[1672783721019,24.4058,13.291,13.278,11.08137784]
[1672783721224,24.4058,13.291,13.279,20.0]
[1672783721885,24.4058,13.291,13.277,20.0]
[1672783723148,56.45,13.297,13.278,30.0]
[1672783723336,56.44,13.299,13.278,30.0]
[1672783723550,30.0,13.298,13.279,20.0]
[1672783723784,56.45,13.297,13.279,20.0]
[1672783723988,30.0,13.298,13.279,20.0]
[1672783724393,56.45,13.297,13.279,20.0]
[1672783724605,30.0,13.296,13.275,20.0]
[1672783724813,30.0,13.294,13.274,20.0]
[1672783725019,56.47,13.293,13.274,20.0]
[1672783725244,30.0,13.292,13.274,20.0]
[1672783725457,30.0,13.292,13.27,53.47955754]
[1672783725667,56.48,13.291,13.27,42.3981797]
[1672783725866,30.0,13.29,13.27,42.3981797]
[1672783726614,56.48,13.291,13.271,30.0]
[1672783726817,56.48,13.291,13.272,20.0]
[1672783728614,30.0,13.29,13.272,20.0]
[1672783729344,56.48,13.289,13.272,20.0]
[1672783731226,86.48,13.29,13.272,20.0]
[1672783732063,86.48,13.29,13.271,20.0]
[1672783732700,94.70898737,13.29,13.27,42.3981797]
[1672783733329,30.0,13.288,13.27,42.3981797]
[1672783733537,56.49,13.287,13.27,42.3981797]
[1672783733747,30.0,13.286,13.27,42.3981797]
[1672783733964,30.0,13.284,13.27,42.3981797]
[1672783734286,30.0,13.282,13.27,42.3981797]
[1672783734493,30.0,13.28,13.27,42.3981797]
[1672783734693,56.53,13.279,13.27,42.3981797]
[1672783734907,30.0,13.278,13.27,42.3981797]
[1672783735119,30.0,13.276,13.27,42.3981797]
[1672783735439,30.0,13.274,13.27,42.3981797]
[1672783735634,56.55,13.273,13.27,42.3981797]
[1672783737328,30.0,13.274,13.273,27.89968681]
[1672783737525,27.88991319,13.273,13.27,42.3981797]
[1672783738159,36.60129687,13.278,13.27,0.0081797]
[1672783738372,71.1437,13.282,13.27,0.0081797]
[1672783738787,30.0,13.28,13.27,0.0081797]
[1672783740779,30.0,13.278,13.27,0.0081797]
[1672783741001,30.0,13.276,13.27,0.0081797]
[1672783741327,30.0,13.274,13.27,0.0081797]
[1672783741523,56.55,13.273,13.27,0.0081797]
[1672783741847,30.0,13.274,13.27,0.0081797]
[1672783743206,56.55,13.273,13.27,0.0081797]
[1672783743427,30.0,13.272,13.27,0.0081797]
[1672783743629,56.55,13.274,13.27,0.0081797]
[1672783743843,30.0,13.274,13.27,0.0081797]
[1672783744690,56.55,13.273,13.27,0.0081797]
[1672783745000,30.0,13.272,13.27,0.0081797]
[1672783745841,30.0,13.27,13.262,20.0]
[1672783746052,30.0,13.268,13.261,20.0]
[1672783746267,56.57,13.269,13.261,20.0]
[1672783746482,56.56,13.271,13.261,20.0]
[1672783747643,30.0,13.27,13.26,200.00989183]
[1672783747856,30.0,13.268,13.26,200.00989183]
[1672783748065,63.86976588,13.259,13.23,72.6536497]
[1672783748260,63.86976588,13.259,13.23,42.3981797]
[1672783748261,222.56109183,13.248,13.23,42.3981797]
[1672783748466,76.66,13.247,13.231,655.47105722]
[1672783748676,84.88898737,13.247,13.231,398.27761715]
[1672783748909,146.64718217,13.246,13.231,114.3330457]
[1672783749103,146.64718217,13.246,13.23,42.3981797]
[1672783749104,76.67,13.245,13.23,42.3981797]
[1672783749435,121.36047656,13.231,13.23,42.3981797]
[1672783749641,56.73,13.231,13.23,42.3981797]
[1672783749850,56.73,13.231,13.205,30.349349]
[1672783749851,24.9918203,13.23,13.206,8.656]
[1672783750168,56.74,13.229,13.205,30.349349]
[1672783750390,30.0,13.228,13.205,30.349349]
[1672783750573,30.0,13.226,13.205,30.349349]
[1672783750783,56.76,13.225,13.205,30.349349]
[1672783750999,56.74,13.229,13.21,30.0]
[1672783751213,56.7,13.239,13.21,30.0]
[1672783751623,55.31310289,13.239,13.211,2.235]
[1672783751843,30.0,13.238,13.211,2.235]
[1672783752170,56.71,13.237,13.211,22.235]
[1672783752486,56.71,13.237,13.212,30.0]
[1672783752675,30.0,13.236,13.213,31.4]
[1672783752880,30.0,13.236,13.213,11.4]
[1672783752881,30.0,13.234,13.213,11.4]
[1672783753101,56.72,13.233,13.214,20.0]
[1672783753315,30.0,13.232,13.215,14.72]
[1672783753523,56.73,13.231,13.211,14.72]
[1672783753746,30.0,13.23,13.21,15.94]
[1672783753941,56.74,13.229,13.21,15.94]
[1672783754165,30.0,13.228,13.21,15.94]
[1672783754367,30.0,13.226,13.209,56.82190014]
[1672783754563,76.76,13.225,13.209,56.82190014]
[1672783754782,30.0,13.224,13.209,56.82190014]
[1672783754989,30.0,13.222,13.209,56.82190014]
[1672783755218,56.77,13.221,13.209,56.82190014]
[1672783755540,86.76,13.224,13.21,13.86]
[1672783755754,30.0,13.224,13.21,13.86]
[1672783755948,30.0,13.222,13.211,20.0]
[1672783756158,93.971,13.237,13.212,16.03]
[1672783756373,93.971,13.237,13.213,30.0]
[1672783756592,93.971,13.237,13.214,36.02]
[1672783756797,93.971,13.237,13.215,30.0]
[1672783757001,56.71,13.236,13.217,30.0]
[1672783757213,56.71,13.236,13.218,44.05]
[1672783757426,56.71,13.236,13.219,30.0]
[1672783757631,30.0,13.235,13.22,46.62]
[1672783758471,26.21978474,13.235,13.22,46.62]
[1672783759636,22.43956948,13.235,13.22,46.62]
[1672783760061,22.7831,13.237,13.221,30.0]
[1672783760271,22.7831,13.237,13.222,47.1]
[1672783760589,19.002028,13.237,13.223,30.0]
[1672783760807,19.002028,13.237,13.224,49.05]
[1672783760997,19.002028,13.237,13.225,30.0]
[1672783761205,19.002028,13.237,13.227,30.0]
[1672783761533,19.002028,13.237,13.228,20.0]
[1672783762365,19.002028,13.237,13.229,39.47530309]
[1672783762582,15.22409548,13.237,13.23,20.0]
[1672783763324,15.22409548,13.237,13.227,20.0]
[1672783763530,11.44616296,13.237,13.227,20.0]
[1672783764148,86.67,13.246,13.227,20.0]
[1672783764475,56.67,13.246,13.228,30.0]
[1672783764689,52.89206748,13.246,13.229,55.65]
[1672783764896,1177.65208572,13.249,13.23,30.0]
[1672783765104,1177.65208572,13.249,13.231,20.0]
[1672783765419,30.0,13.255,13.232,30.0]
[1672783765629,218.78344446,13.248,13.232,46.58196976]
[1672783765837,56.66,13.247,13.232,51.62626603]
[1672783766031,56.66,13.247,13.213,30.0]
[1672783766032,30.0,13.246,13.213,30.0]
[1672783766251,56.67,13.245,13.216,44.90151336]
[1672783766572,26.22349279,13.244,13.217,68.44913951]
[1672783766802,30.0,13.242,13.217,68.44913951]
[1672783766989,30.0,13.242,13.219,30.0]
[1672783767202,56.69,13.241,13.22,1.972]
[1672783767524,30.0,13.24,13.22,46.87351336]
[1672783767933,56.7,13.239,13.22,1.972]
[1672783768131,56.7,13.239,13.218,66.87451336]
[1672783768345,30.0,13.242,13.219,68.44913951]
[1672783768554,56.69,13.241,13.221,44.90151336]
[1672783768771,30.0,13.24,13.213,1.974]
[1672783769107,30.0,13.238,13.212,44.90151336]
[1672783769301,56.71,13.237,13.213,31.975]
[1672783769508,30.0,13.236,13.213,31.975]
[1672783769724,30.0,13.234,13.213,76.87651336]
[1672783769924,56.72,13.233,13.214,20.0]
[1672783770137,30.0,13.232,13.215,37.66]
[1672783770347,30.0,13.232,13.214,82.56151336]
[1672783770570,30.0,13.232,13.215,30.0]
[1672783770776,56.72,13.233,13.216,37.66]
[1672783771000,56.72,13.233,13.216,82.56151336]
[1672783771201,56.71,13.235,13.217,30.0]
[1672783771406,30.0,13.234,13.218,57.65]
[1672783771617,56.72,13.233,13.218,37.65]
[1672783771837,30.0,13.232,13.218,37.65]
[1672783772145,30.0,13.23,13.214,37.67]
[1672783772351,56.74,13.229,13.211,37.68]
[1672783772561,56.74,13.229,13.213,30.0]
[1672783772878,56.74,13.229,13.213,112.57151336]
[1672783773842,56.73,13.231,13.213,112.57151336]
[1672783774056,56.73,13.231,13.215,30.0]
[1672783774250,56.73,13.231,13.216,20.0]
[1672783774462,56.73,13.231,13.216,44.90151336]
[1672783774995,30.0,13.23,13.216,44.90151336]
[1672783775185,30.0,13.228,13.216,44.90151336]
[1672783775391,30.0,13.228,13.213,37.67]
[1672783775392,56.75,13.227,13.213,37.67]
[1672783775608,95.4689,13.237,13.214,50.0]
[1672783775818,30.0,13.236,13.214,50.0]
[1672783776028,30.0,13.236,13.216,30.0]
[1672783776264,30.0,13.234,13.217,58.11]
[1672783776454,56.72,13.233,13.218,30.0]
[1672783776671,52.94007023,13.233,13.219,61.89]
[1672783777519,26.218928,13.234,13.219,61.89]
[1672783777836,30.0,13.232,13.219,44.90151336]
[1672783778028,56.73,13.231,13.209,56.82190013]
[1672783778239,30.0,13.23,13.211,44.90151336]
[1672783778467,56.74,13.229,13.212,20.0]
[1672783778653,30.0,13.228,13.211,44.90151336]
[1672783778867,30.0,13.226,13.211,44.90151336]
[1672783779079,56.76,13.225,13.209,56.82190013]
[1672783779290,56.75,13.227,13.21,30.0]
[1672783779505,30.0,13.228,13.21,30.0]
[1672783779711,56.75,13.227,13.21,74.90151336]
[1672783780245,56.75,13.227,13.211,20.0]
[1672783781080,56.75,13.227,13.211,64.90151336]
[1672783781290,56.75,13.227,13.212,30.0]
[1672783781511,52.96692743,13.227,13.213,20.0]
[1672783782257,56.74,13.228,13.213,20.0]
[1672783782470,20.0,13.227,13.214,37.23274635]
[1672783782783,86.75,13.226,13.214,37.23274635]
[1672783783499,82.96692743,13.226,13.214,37.23274635]
[1672783783944,82.96692743,13.226,13.209,56.82190013]
[1672783784246,82.96692743,13.226,13.21,37.23274635]
[1672783784459,82.96692743,13.226,13.209,56.82190013]
[1672783784777,79.18385486,13.226,13.209,56.82190013]
[1672783784990,79.18385486,13.226,13.21,37.23274635]
[1672783785393,79.18385486,13.226,13.21,42.00247284]
[1672783785597,79.18385486,13.226,13.211,86.9039862]
[1672783786037,79.18385486,13.226,13.212,42.00247284]
[1672783786563,75.40078229,13.226,13.212,42.00247284]
[1672783786777,75.40078229,13.226,13.211,44.90151336]
[1672783787495,75.40078229,13.226,13.209,56.82190013]
[1672783787705,30.0,13.225,13.209,56.82190013]
[1672783787922,56.76,13.224,13.209,56.82190013]
[1672783788127,50.0,13.223,13.209,56.82190013]
[1672783788336,30.0,13.221,13.209,56.82190013]
[1672783788545,76.78,13.22,13.209,2.20100013]
[1672783788757,30.0,13.219,13.209,2.20100013]
[1672783788967,30.0,13.217,13.209,2.20100013]
[1672783789314,30.0,13.215,13.209,2.20100013]
[1672783789507,56.8,13.214,13.209,2.20100013]
[1672783789699,30.0,13.213,13.209,2.20100013]
[1672783789905,30.0,13.211,13.2,1.70954776]
[1672783790133,56.82,13.21,13.2,1.70954776]
[1672783790757,30.0,13.209,13.2,1.70954776]
[1672783791173,56.82,13.21,13.2,1.70954776]
[1672783791612,44.50982748,13.21,13.2,1.70954776]
[1672783792036,30.0,13.209,13.2,1.70954776]
[1672783792432,30.0,13.207,13.2,1.70954776]
[1672783792862,56.84,13.206,13.2,1.70954776]
[1672783793293,1112.72957917,13.218,13.202,0.1637267]
[1672783793512,1011.7887792,13.217,13.203,44.24027117]
[1672783793730,30.0,13.216,13.204,20.0]
[1672783793915,86.8,13.216,13.204,70.98152963]
[1672783794126,86.8,13.216,13.204,50.98152963]
[1672783794336,86.8,13.216,13.205,50.98152963]
[1672783794550,86.8,13.216,13.202,0.1637267]
[1672783796330,56.8,13.216,13.202,0.1637267]
[1672783796645,53.00406581,13.217,13.202,0.1637267]
[1672783797080,53.00406581,13.217,13.203,46.57452963]
[1672783797288,80.444,13.218,13.203,99.60686747]
[1672783797600,80.444,13.218,13.204,104.21686747]
[1672783797798,30.0,13.217,13.204,66.57452963]
[1672783798008,30.0,13.217,13.205,92.22826914]
[1672783798234,30.0,13.217,13.206,20.0]
[1672783798444,30.0,13.217,13.206,112.22826914]
[1672783798653,30.0,13.217,13.207,92.22826914]
[1672783799072,30.0,13.217,13.206,20.0]
[1672783799285,30.0,13.217,13.207,46.57452963]
[1672783799494,80.444,13.218,13.217,3.78460611]
[1672783799701,56.79,13.218,13.217,3.78460611]
[1672783799914,2.5,13.225,13.217,3.78460611]
[1672783800223,30.0,13.223,13.217,98.02282258]
[1672783800426,56.77,13.222,13.217,50.35913574]
[1672783800639,30.0,13.221,13.217,50.35913574]
[1672783800845,30.0,13.221,13.217,3.78460611]
[1672783801489,30.0,13.223,13.217,3.78460611]
[1672783801704,2.5,13.225,13.217,50.35913574]
[1672783801898,2.5,13.225,13.218,47.66368684]
[1672783802322,2.5,13.225,13.219,46.57452963]
[1672783803581,2.5,13.225,13.217,3.78460611]
[1672783803793,2.5,13.225,13.219,47.59810618]
[1672783804008,2.5,13.225,13.217,50.35913574]
[1672783804752,2.5,13.225,13.217,97.95724192]
[1672783804966,2.5,13.225,13.217,3.78460611]
[1672783805182,30.0,13.224,13.217,3.78460611]
[1672783805692,26.21709939,13.224,13.217,3.78460611]
[1672783805906,2.5,13.225,13.217,40.50821189]
[1672783806432,2.5,13.225,13.217,46.57452963]
[1672783806624,2.5,13.225,13.202,23.8239267]
[1672783806625,56.76,13.224,13.202,23.8239267]
[1672783806835,114.5785,13.224,13.212,37.89033273]
[1672783807046,114.5785,13.224,13.213,20.0]
[1672783807261,2.5,13.225,13.211,52.62149033]
[1672783807478,56.76,13.224,13.209,41.25232963]
[1672783807692,30.0,13.223,13.204,37.89033273]
[1672783807901,30.0,13.223,13.205,50.0]
[1672783808108,30.0,13.223,13.205,91.25232963]
[1672783808322,30.0,13.223,13.206,87.74816865]
[1672783808742,30.0,13.223,13.207,87.74816865]
[1672783808962,30.0,13.221,13.207,87.74816865]
[1672783809149,30.0,13.221,13.207,41.25232963]
[1672783809368,30.0,13.221,13.203,30.0]
[1672783809586,30.0,13.221,13.204,37.89033273]
[1672783809902,30.0,13.221,13.204,125.63850138]
[1672783810100,30.0,13.221,13.205,61.25232963]
[1672783810957,30.0,13.221,13.206,41.25232963]
[1672783811272,30.0,13.221,13.205,66.49583902]
[1672783811273,30.0,13.219,13.205,20.0]
[1672783811481,30.0,13.219,13.202,0.1637267]
[1672783813041,167.0551,13.22,13.202,125.80222808]
[1672783813263,30.0,13.219,13.203,20.0]
[1672783813568,53.00538301,13.218,13.203,20.0]
[1672783814739,30.0,13.217,13.203,20.0]
[1672783814947,30.0,13.217,13.202,0.1637267]
[1672783815353,110.2751,13.22,13.203,3.139]
[1672783815562,110.2751,13.22,13.203,23.139]
[1672783815889,30.0,13.218,13.203,23.139]
[1672783816084,56.78,13.219,13.203,23.139]
[1672783817158,30.0,13.219,13.203,23.139]
[1672783817352,56.79,13.218,13.203,23.139]
[1672783817565,56.79,13.218,13.204,20.0]
[1672783817885,30.0,13.217,13.203,3.139]
[1672783818727,30.0,13.217,13.202,23.6537267]
[1672783819043,30.0,13.215,13.203,20.0]
[1672783819662,30.0,13.215,13.202,20.1637267]
[1672783821461,30.0,13.213,13.202,20.1637267]
[1672783821663,30.0,13.211,13.202,0.1637267]
[1672783822201,56.79,13.218,13.202,0.1637267]
[1672783822395,86.78,13.219,13.203,25.9]
[1672783822607,86.78,13.219,13.204,20.0]
[1672783822818,86.78,13.219,13.205,29.66]
[1672783823027,86.78,13.219,13.204,20.0]
[1672783823244,86.78,13.219,13.206,20.0]
[1672783823567,86.78,13.219,13.204,20.0]
[1672783823773,86.78,13.219,13.203,20.0]
[1672783825238,86.78,13.219,13.203,54.13]
[1672783825769,86.78,13.219,13.203,20.0]
[1672783826920,86.78,13.219,13.203,57.6]
[1672783827347,56.78,13.219,13.203,57.6]
[1672783828070,30.0,13.218,13.203,57.6]
[1672783830494,86.78,13.219,13.203,57.6]
[1672783830720,110.2751,13.22,13.203,57.6]
[1672783831535,110.2751,13.22,13.204,67.89033273]
[1672783831740,110.2751,13.22,13.205,59.08]
[1672783831965,110.2751,13.22,13.206,30.0]
[1672783832157,110.2751,13.22,13.207,41.28]
[1672783833755,110.2751,13.22,13.208,59.97033273]
[1672783833945,110.2751,13.22,13.208,39.97033273]
[1672783834375,110.2751,13.22,13.209,39.97033273]
[1672783834589,110.2751,13.22,13.21,20.0]
[1672783834806,56.76,13.224,13.211,83.17]
[1672783835011,2.5,13.225,13.212,20.0]
[1672783835225,2.5,13.225,13.213,30.0]
[1672783835431,2.5,13.225,13.215,42.05283786]
[1672783835643,2.5,13.225,13.216,73.5]
[1672783835837,2.5,13.225,13.216,20.0]
[1672783836049,2.5,13.225,13.216,62.68299939]
[1672783836268,2.5,13.225,13.217,42.0390451]
[1672783836475,2.5,13.225,13.216,66.49583902]
[1672783837310,2.5,13.225,13.216,109.17883841]
[1672783837539,2.5,13.225,13.216,150.43116804]
[1672783837746,2.5,13.225,13.219,30.0]
[1672783837945,2.5,13.225,13.218,42.60743837]
[1672783838166,2.5,13.225,13.22,130.43116804]
[1672783838576,2.5,13.225,13.221,84.04020534]
[1672783838996,2.5,13.225,13.222,41.25232963]
[1672783839649,2.5,13.225,13.222,83.93532902]
[1672783839962,2.5,13.225,13.223,94.61353868]
[1672783840371,2.5,13.225,13.224,94.61353868]
[1672783841424,2.5,13.225,13.224,137.29653807]
[1672783841843,2.5,13.225,13.224,90.52199569]
[1672783842153,2.5,13.225,13.224,47.8389963]
[1672783842589,2.5,13.225,13.224,92.1155498]
[1672783842908,2.08678224,13.233,13.225,10.0]
[1672783843217,4.58678224,13.233,13.226,281.39439928]
[1672783843409,4.58678224,13.233,13.226,348.27082458]